[Event "Late-Titled-Tuesday-Blitz-June-18-2024"]
[Site "Chess.com"]
[Date "2024.06.18"]
[Round "4"]
[White "Josetricks"]
[Black "Jarming"]
[Result "0-1"]
[WhiteElo "2388"]
[BlackElo "2646"]
[TimeControl "180+1"]
[EndTime "14:42:18 PDT"]
[Termination "Jarming won by resignation"]

1. c4 {[%clk 0:03:00.4]} 1... e5 {[%clk 0:02:58.1]} 2. Nc3 {[%clk 0:02:59.5]}
2... Nf6 {[%clk 0:02:57.7]} 3. Nf3 {[%clk 0:03:00]} 3... Nc6 {[%clk 0:02:57.6]}
4. e4 {[%clk 0:02:59.5]} 4... Bc5 {[%clk 0:02:53.8]} 5. Nxe5 {[%clk 0:02:59.1]}
5... Nxe5 {[%clk 0:02:52.2]} 6. d4 {[%clk 0:02:58.3]} 6... Bxd4 {[%clk
0:02:52.7]} 7. Qxd4 {[%clk 0:02:57.8]} 7... d6 {[%clk 0:02:53.6]} 8. Bg5 {[%clk
0:02:46.6]} 8... h6 {[%clk 0:02:53.1]} 9. Bh4 {[%clk 0:02:46.6]} 9... Be6 {[%clk
0:02:41.9]} 10. h3 {[%clk 0:02:44.8]} 10... g5 {[%clk 0:02:35.6]} 11. Bg3 {[%clk
0:02:44]} 11... Nc6 {[%clk 0:02:36.5]} 12. Qd2 {[%clk 0:02:41]} 12... a6 {[%clk
0:02:28.7]} 13. Be2 {[%clk 0:02:40.8]} 13... Ne5 {[%clk 0:02:21.7]} 14. b3
{[%clk 0:02:38]} 14... Qe7 {[%clk 0:02:12.5]} 15. Qe3 {[%clk 0:02:13.9]} 15...
O-O-O {[%clk 0:02:09.7]} 16. Qa7 {[%clk 0:02:10.4]} 16... Nc6 {[%clk 0:02:05.9]}
17. Qe3 {[%clk 0:01:57]} 17... Rde8 {[%clk 0:02:00.6]} 18. O-O {[%clk
0:01:42.1]} 18... Rhg8 {[%clk 0:01:46.4]} 19. b4 {[%clk 0:01:18.9]} 19... Nxb4
{[%clk 0:01:28.2]} 20. Rab1 {[%clk 0:01:04.5]} 20... c5 {[%clk 0:01:27.2]} 21.
Rfd1 {[%clk 0:00:55.7]} 21... Nc2 {[%clk 0:01:18.1]} 22. Qd2 {[%clk 0:00:44.2]}
22... Nd4 {[%clk 0:01:18.1]} 23. Rb6 {[%clk 0:00:39.5]} 23... Rd8 {[%clk
0:00:57.7]} 24. Rdb1 {[%clk 0:00:38.2]} 24... Rd7 {[%clk 0:00:53.3]} 25. Qb2
{[%clk 0:00:20.5]} 25... h5 {[%clk 0:00:41.6]} 26. Rxa6 {[%clk 0:00:20.1]} 26...
Rc7 {[%clk 0:00:25.7]} 27. Bxd6 {[%clk 0:00:15.3]} 27... Nxe2+ {[%clk
0:00:25.9]} 28. Nxe2 {[%clk 0:00:14.8]} 28... bxa6 {[%clk 0:00:25]} 29. Bxe7
{[%clk 0:00:14.2]} 29... Rxe7 {[%clk 0:00:20.7]} 30. Qxf6 {[%clk 0:00:13.3]}
30... Rd7 {[%clk 0:00:20.4]} 31. Qe5 {[%clk 0:00:11.2]} 31... Rc7 {[%clk
0:00:20.3]} 32. Nc3 {[%clk 0:00:10.3]} 32... Bxc4 {[%clk 0:00:19.9]} 33. Nd5
{[%clk 0:00:07.9]} 33... Bxd5 {[%clk 0:00:19.7]} 34. exd5 {[%clk 0:00:08.2]}
34... Rd8 {[%clk 0:00:20.2]} 35. Qf5+ {[%clk 0:00:08.7]} 35... Rcd7 {[%clk
0:00:19.4]} 36. Rb6 {[%clk 0:00:08.8]} 36... Kc7 {[%clk 0:00:19.4]} 37. Rc6+
{[%clk 0:00:09.2]} 37... Kb7 {[%clk 0:00:20]} 38. Rf6 {[%clk 0:00:08]} 38...
Rxd5 {[%clk 0:00:19.9]} 39. Rxf7+ {[%clk 0:00:08.4]} 39... Kb6 {[%clk
0:00:20.5]} 40. Qe6+ {[%clk 0:00:06.6]} 40... Kb5 {[%clk 0:00:18.1]} 41. Rb7+
{[%clk 0:00:05.6]} 41... Kc4 {[%clk 0:00:17.8]} 42. Qe2+ {[%clk 0:00:05.7]}
42... Rd3 {[%clk 0:00:17.4]} 43. Rb3 {[%clk 0:00:05.1]} 43... a5 {[%clk
0:00:17.5]} 44. Rxd3 {[%clk 0:00:03.6]} 44... Rxd3 {[%clk 0:00:16.7]} 45. Qe4+
{[%clk 0:00:03.8]} 45... Kc3 {[%clk 0:00:15.9]} 46. g4 {[%clk 0:00:02.6]} 46...
hxg4 {[%clk 0:00:15.6]} 47. hxg4 {[%clk 0:00:03.5]} 47... c4 {[%clk 0:00:16]}
48. f4 {[%clk 0:00:04.1]} 48... gxf4 {[%clk 0:00:13.7]} 49. g5 {[%clk 0:00:05]}
49... Rg3+ {[%clk 0:00:11.9]} 50. Kf2 {[%clk 0:00:05.5]} 50... Rxg5 {[%clk
0:00:12.3]} 51. Qxf4 {[%clk 0:00:05.2]} 51... Rb5 {[%clk 0:00:12.4]} 52. Qe5+
{[%clk 0:00:04.7]} 52... Rxe5 {[%clk 0:00:11]} 0-1

[Event "Late-Titled-Tuesday-Blitz-June-18-2024"]
[Site "Chess.com"]
[Date "2024.06.18"]
[Round "4"]
[White "Finejupiter"]
[Black "talaicito"]
[Result "0-1"]
[WhiteElo "1871"]
[BlackElo "2302"]
[TimeControl "180+1"]
[EndTime "14:42:19 PDT"]
[Termination "talaicito won on time"]

1. e4 {[%clk 0:02:59]} 1... c5 {[%clk 0:02:59.5]} 2. b4 {[%clk 0:02:55.8]} 2...
b6 {[%clk 0:02:57.8]} 3. bxc5 {[%clk 0:02:55.2]} 3... bxc5 {[%clk 0:02:58.7]} 4.
Nf3 {[%clk 0:02:55.9]} 4... Nc6 {[%clk 0:02:58.3]} 5. Bb5 {[%clk 0:02:55.9]}
5... Qb6 {[%clk 0:02:55.4]} 6. Nc3 {[%clk 0:02:55.5]} 6... a6 {[%clk 0:02:55.2]}
7. Nd5 {[%clk 0:02:42.6]} 7... Qb7 {[%clk 0:02:55.3]} 8. Bc4 {[%clk 0:02:41.3]}
8... e6 {[%clk 0:02:54.7]} 9. Nc3 {[%clk 0:02:26.7]} 9... Na5 {[%clk 0:02:54.7]}
10. Be2 {[%clk 0:02:25.4]} 10... d6 {[%clk 0:02:46.6]} 11. O-O {[%clk
0:02:25.5]} 11... Nf6 {[%clk 0:02:44.9]} 12. d4 {[%clk 0:02:21.1]} 12... cxd4
{[%clk 0:02:39.5]} 13. Qxd4 {[%clk 0:02:18.4]} 13... Be7 {[%clk 0:02:32.9]} 14.
Ba3 {[%clk 0:02:09.4]} 14... Qc7 {[%clk 0:02:25.3]} 15. Rfd1 {[%clk 0:02:04.4]}
15... O-O {[%clk 0:02:23.4]} 16. h3 {[%clk 0:01:31]} 16... Rd8 {[%clk
0:02:14.6]} 17. Qe3 {[%clk 0:01:30.6]} 17... Bb7 {[%clk 0:01:49.3]} 18. Rab1
{[%clk 0:01:22.9]} 18... Rac8 {[%clk 0:01:43.6]} 19. Na4 {[%clk 0:01:18.6]}
19... Bxe4 {[%clk 0:01:34]} 20. Nd4 {[%clk 0:00:52.7]} 20... Rb8 {[%clk
0:01:12.7]} 21. Bxa6 {[%clk 0:00:29.2]} 21... Qa7 {[%clk 0:00:53]} 22. Be2
{[%clk 0:00:27]} 22... Qa8 {[%clk 0:00:31]} 23. g3 {[%clk 0:00:20]} 23... e5
{[%clk 0:00:23]} 24. Nf3 {[%clk 0:00:15.1]} 24... Nc4 {[%clk 0:00:20.6]} 25.
Bxc4 {[%clk 0:00:15]} 25... Bxf3 {[%clk 0:00:19.9]} 26. Rd3 {[%clk 0:00:14.5]}
26... Qxa4 {[%clk 0:00:17.6]} 27. Rxb8 {[%clk 0:00:14.2]} 27... Rxb8 {[%clk
0:00:16.7]} 28. Bb3 {[%clk 0:00:14.4]} 28... Qa8 {[%clk 0:00:13.8]} 29. Qxf3
{[%clk 0:00:14.5]} 29... e4 {[%clk 0:00:12.8]} 30. Qe3 {[%clk 0:00:13.6]} 30...
exd3 {[%clk 0:00:12.3]} 31. Qxe7 {[%clk 0:00:14.1]} 31... Qxa3 {[%clk
0:00:10.5]} 32. Qxf7+ {[%clk 0:00:09.3]} 32... Kh8 {[%clk 0:00:11.1]} 33. Qc7
{[%clk 0:00:09.1]} 33... Re8 {[%clk 0:00:10.1]} 34. cxd3 {[%clk 0:00:09.3]}
34... Qb2 {[%clk 0:00:09.1]} 35. Qf7 {[%clk 0:00:08.8]} 35... Qe5 {[%clk
0:00:08.2]} 36. h4 {[%clk 0:00:07.6]} 36... d5 {[%clk 0:00:08]} 37. Kg2 {[%clk
0:00:03.9]} 37... h6 {[%clk 0:00:08]} 38. a4 {[%clk 0:00:03.8]} 38... Qe6 {[%clk
0:00:06.7]} 39. Qb7 {[%clk 0:00:03.9]} 39... Qf5 {[%clk 0:00:04.7]} 40. Qb5
{[%clk 0:00:03.4]} 40... Re2 {[%clk 0:00:04.3]} 41. Qb6 {[%clk 0:00:01.9]} 41...
Ng4 {[%clk 0:00:01.5]} 0-1

[Event "Late-Titled-Tuesday-Blitz-June-18-2024"]
[Site "Chess.com"]
[Date "2024.06.18"]
[Round "4"]
[White "madmax011"]
[Black "AlbusSevresPotter"]
[Result "0-1"]
[WhiteElo "2394"]
[BlackElo "2613"]
[TimeControl "180+1"]
[EndTime "14:42:23 PDT"]
[Termination "AlbusSevresPotter won by checkmate"]

1. d4 {[%clk 0:02:55.5]} 1... g6 {[%clk 0:02:59.9]} 2. c4 {[%clk 0:02:54.7]}
2... Bg7 {[%clk 0:03:00.4]} 3. Nc3 {[%clk 0:02:55.4]} 3... d6 {[%clk 0:03:00.6]}
4. e4 {[%clk 0:02:55.6]} 4... Bd7 {[%clk 0:02:54.5]} 5. Be3 {[%clk 0:02:51.9]}
5... Nc6 {[%clk 0:02:50.5]} 6. d5 {[%clk 0:02:49.9]} 6... Na5 {[%clk 0:02:50.4]}
7. Bd4 {[%clk 0:02:44.9]} 7... Nf6 {[%clk 0:02:19.5]} 8. e5 {[%clk 0:02:44.9]}
8... dxe5 {[%clk 0:02:15.3]} 9. Bxe5 {[%clk 0:02:45.8]} 9... c5 {[%clk
0:02:12.5]} 10. Nf3 {[%clk 0:02:42.4]} 10... O-O {[%clk 0:02:12.6]} 11. Be2
{[%clk 0:02:36.7]} 11... Bg4 {[%clk 0:02:10.6]} 12. Qd3 {[%clk 0:02:17.9]} 12...
Nd7 {[%clk 0:01:57.3]} 13. Bxg7 {[%clk 0:02:17]} 13... Kxg7 {[%clk 0:01:58.2]}
14. Ne4 {[%clk 0:02:06.9]} 14... Qb6 {[%clk 0:01:38.4]} 15. Qc3+ {[%clk
0:01:46.1]} 15... Kg8 {[%clk 0:01:30.5]} 16. O-O {[%clk 0:01:46.6]} 16... Bxf3
{[%clk 0:01:09.9]} 17. Bxf3 {[%clk 0:01:45.3]} 17... Qb4 {[%clk 0:00:58.9]} 18.
Qxb4 {[%clk 0:01:42.7]} 18... cxb4 {[%clk 0:00:59.8]} 19. b3 {[%clk 0:01:43.3]}
19... b6 {[%clk 0:00:58.3]} 20. g3 {[%clk 0:01:31.7]} 20... Nb7 {[%clk
0:00:53.1]} 21. Rfe1 {[%clk 0:01:29.8]} 21... Rfe8 {[%clk 0:00:49.2]} 22. Rad1
{[%clk 0:01:27]} 22... Rad8 {[%clk 0:00:47.7]} 23. Bg2 {[%clk 0:01:21.5]} 23...
h6 {[%clk 0:00:40.9]} 24. f4 {[%clk 0:01:17.2]} 24... f5 {[%clk 0:00:39.9]} 25.
Nf2 {[%clk 0:01:15.7]} 25... Nbc5 {[%clk 0:00:39.5]} 26. Re3 {[%clk 0:01:12.6]}
26... Kf7 {[%clk 0:00:39.4]} 27. Rde1 {[%clk 0:01:12.1]} 27... a5 {[%clk
0:00:39.1]} 28. h3 {[%clk 0:00:57.7]} 28... a4 {[%clk 0:00:35.4]} 29. g4 {[%clk
0:00:44.4]} 29... axb3 {[%clk 0:00:31.1]} 30. axb3 {[%clk 0:00:44.5]} 30... Nf6
{[%clk 0:00:28.5]} 31. Bf3 {[%clk 0:00:42.1]} 31... e6 {[%clk 0:00:14.4]} 32. g5
{[%clk 0:00:20.7]} 32... hxg5 {[%clk 0:00:12.1]} 33. fxg5 {[%clk 0:00:21.6]}
33... f4 {[%clk 0:00:06.2]} 34. R3e2 {[%clk 0:00:17.5]} 34... Nh7 {[%clk
0:00:02.5]} 35. dxe6+ {[%clk 0:00:15.4]} 35... Nxe6 {[%clk 0:00:03.4]} 36. h4
{[%clk 0:00:15.5]} 36... Nd4 {[%clk 0:00:03.3]} 37. Bd5+ {[%clk 0:00:15.4]}
37... Kf8 {[%clk 0:00:02.2]} 38. Re4 {[%clk 0:00:11.6]} 38... Nf3+ {[%clk
0:00:01.7]} 39. Kg2 {[%clk 0:00:12]} 39... Nxe1+ {[%clk 0:00:02.6]} 40. Kf1
{[%clk 0:00:11.2]} 40... Rxe4 {[%clk 0:00:01.8]} 41. Nxe4 {[%clk 0:00:12.1]}
41... Nd3 {[%clk 0:00:02.5]} 42. Ke2 {[%clk 0:00:10.4]} 42... Nc5 {[%clk
0:00:02.3]} 43. Nd2 {[%clk 0:00:08.8]} 43... Ke7 {[%clk 0:00:02.3]} 44. Kf3
{[%clk 0:00:09.2]} 44... Nf8 {[%clk 0:00:03]} 45. Kxf4 {[%clk 0:00:09.5]} 45...
Nfe6+ {[%clk 0:00:03.9]} 46. Ke5 {[%clk 0:00:09.9]} 46... Rf8 {[%clk 0:00:04.5]}
47. Nf3 {[%clk 0:00:08.2]} 47... Rf5# {[%clk 0:00:04.7]} 0-1

[Event "Late-Titled-Tuesday-Blitz-June-18-2024"]
[Site "Chess.com"]
[Date "2024.06.18"]
[Round "4"]
[White "Adar_07"]
[Black "ansko1999"]
[Result "1-0"]
[WhiteElo "2818"]
[BlackElo "2595"]
[TimeControl "180+1"]
[EndTime "14:42:24 PDT"]
[Termination "Adar_07 won by checkmate"]

1. e4 {[%clk 0:03:00.9]} 1... c5 {[%clk 0:02:59.1]} 2. Nf3 {[%clk 0:03:00.5]}
2... Nf6 {[%clk 0:02:59.5]} 3. Nc3 {[%clk 0:02:59.4]} 3... d5 {[%clk 0:02:59.1]}
4. exd5 {[%clk 0:02:55.9]} 4... Nxd5 {[%clk 0:03:00]} 5. Bb5+ {[%clk 0:02:54.6]}
5... Bd7 {[%clk 0:03:00]} 6. Ne5 {[%clk 0:02:52.9]} 6... e6 {[%clk 0:02:57]} 7.
Nxd7 {[%clk 0:02:46]} 7... Nxd7 {[%clk 0:02:57.9]} 8. Nxd5 {[%clk 0:02:46]} 8...
exd5 {[%clk 0:02:58]} 9. O-O {[%clk 0:02:45.2]} 9... Be7 {[%clk 0:02:58.4]} 10.
Qg4 {[%clk 0:02:44.3]} 10... a6 {[%clk 0:02:48.4]} 11. Qxg7 {[%clk 0:02:39.2]}
11... Rf8 {[%clk 0:02:42.2]} 12. Be2 {[%clk 0:02:33.8]} 12... Nf6 {[%clk
0:02:40.4]} 13. d4 {[%clk 0:02:32.2]} 13... cxd4 {[%clk 0:02:36.3]} 14. Re1
{[%clk 0:02:28.5]} 14... Qd6 {[%clk 0:02:26.9]} 15. Bg5 {[%clk 0:02:01.8]} 15...
Rg8 {[%clk 0:02:10.1]} 16. Qh6 {[%clk 0:01:45.1]} 16... Rg6 {[%clk 0:02:05.9]}
17. Qh4 {[%clk 0:01:44.4]} 17... O-O-O {[%clk 0:02:01.9]} 18. Bd3 {[%clk
0:01:41.7]} 18... Rxg5 {[%clk 0:01:04.3]} 19. Qxg5 {[%clk 0:01:38.4]} 19... Ne4
{[%clk 0:01:03.3]} 20. Qf5+ {[%clk 0:01:35.9]} 20... Kb8 {[%clk 0:01:03.1]} 21.
Bxe4 {[%clk 0:01:36.2]} 21... dxe4 {[%clk 0:01:03.2]} 22. Qxe4 {[%clk
0:01:37.1]} 22... Bf6 {[%clk 0:01:01.7]} 23. Qxh7 {[%clk 0:01:36.9]} 23... Rh8
{[%clk 0:01:01]} 24. Qxh8+ {[%clk 0:01:33.4]} 24... Bxh8 {[%clk 0:01:01.9]} 25.
Re8+ {[%clk 0:01:33.8]} 25... Kc7 {[%clk 0:00:56.5]} 26. Rxh8 {[%clk 0:01:33.8]}
26... Qb4 {[%clk 0:00:55]} 27. Rd1 {[%clk 0:01:11.9]} 27... Qxb2 {[%clk
0:00:53.9]} 28. Rh4 {[%clk 0:01:11.6]} 28... d3 {[%clk 0:00:46.9]} 29. Rc4+
{[%clk 0:01:12.5]} 29... Kb8 {[%clk 0:00:44.3]} 30. cxd3 {[%clk 0:01:10.9]}
30... Qxa2 {[%clk 0:00:43.5]} 31. h4 {[%clk 0:01:09.1]} 31... b5 {[%clk
0:00:39.1]} 32. Rf4 {[%clk 0:01:08.4]} 32... Qe2 {[%clk 0:00:38.1]} 33. Rf1
{[%clk 0:00:54.4]} 33... Qxd3 {[%clk 0:00:36]} 34. h5 {[%clk 0:00:54.1]} 34...
Qh7 {[%clk 0:00:34.2]} 35. Rh4 {[%clk 0:00:46.1]} 35... Qh6 {[%clk 0:00:33.5]}
36. Re1 {[%clk 0:00:42.1]} 36... Kc7 {[%clk 0:00:27.9]} 37. Re7+ {[%clk
0:00:39.1]} 37... Kb6 {[%clk 0:00:24.8]} 38. Rxf7 {[%clk 0:00:40]} 38... a5
{[%clk 0:00:22.8]} 39. Rhf4 {[%clk 0:00:36.6]} 39... Qh8 {[%clk 0:00:15.5]} 40.
h6 {[%clk 0:00:36.3]} 40... a4 {[%clk 0:00:14.9]} 41. R4f6+ {[%clk 0:00:34.7]}
41... Ka5 {[%clk 0:00:14.5]} 42. h7 {[%clk 0:00:34.2]} 42... a3 {[%clk
0:00:13.8]} 43. Ra7+ {[%clk 0:00:34.1]} 43... Kb4 {[%clk 0:00:13.7]} 44. Rf4+
{[%clk 0:00:34.6]} 44... Kc5 {[%clk 0:00:11.9]} 45. Rg4 {[%clk 0:00:33.3]} 45...
b4 {[%clk 0:00:10.8]} 46. Rg8 {[%clk 0:00:32.6]} 46... Qa1+ {[%clk 0:00:08.3]}
47. Kh2 {[%clk 0:00:32.5]} 47... Qe5+ {[%clk 0:00:08.9]} 48. g3 {[%clk
0:00:32.9]} 48... Qh5+ {[%clk 0:00:08.6]} 49. Kg2 {[%clk 0:00:32.3]} 49... Qd5+
{[%clk 0:00:07.6]} 50. f3 {[%clk 0:00:32.6]} 50... Qd2+ {[%clk 0:00:07.5]} 51.
Kh3 {[%clk 0:00:33]} 51... Qh6+ {[%clk 0:00:07.5]} 52. Kg4 {[%clk 0:00:33.7]}
52... Qe6+ {[%clk 0:00:05.5]} 53. Kh5 {[%clk 0:00:34]} 53... Qf5+ {[%clk
0:00:04.6]} 54. Rg5 {[%clk 0:00:34.5]} 54... Qxg5+ {[%clk 0:00:04]} 55. Kxg5
{[%clk 0:00:35.4]} 55... b3 {[%clk 0:00:04.3]} 56. h8=Q {[%clk 0:00:35.8]} 56...
b2 {[%clk 0:00:05]} 57. Qc3+ {[%clk 0:00:35.5]} 57... Kb6 {[%clk 0:00:04.5]} 58.
Qa5+ {[%clk 0:00:19]} 58... Kc6 {[%clk 0:00:04.5]} 59. Rc7+ {[%clk 0:00:19.9]}
59... Kd6 {[%clk 0:00:05]} 60. Qc5+ {[%clk 0:00:20.8]} 60... Ke6 {[%clk
0:00:05.9]} 61. Re7# {[%clk 0:00:21.7]} 1-0

[Event "Late-Titled-Tuesday-Blitz-June-18-2024"]
[Site "Chess.com"]
[Date "2024.06.18"]
[Round "4"]
[White "yobdc"]
[Black "Chopper1905"]
[Result "0-1"]
[WhiteElo "2562"]
[BlackElo "2912"]
[TimeControl "180+1"]
[EndTime "14:42:26 PDT"]
[Termination "Chopper1905 won on time"]

1. e4 {[%clk 0:03:00.9]} 1... c5 {[%clk 0:02:59.2]} 2. Nf3 {[%clk 0:03:00.2]}
2... d6 {[%clk 0:02:57.9]} 3. Bb5+ {[%clk 0:03:00.4]} 3... Bd7 {[%clk
0:02:55.3]} 4. c4 {[%clk 0:03:00.7]} 4... Nf6 {[%clk 0:02:54.4]} 5. Nc3 {[%clk
0:03:00.7]} 5... e5 {[%clk 0:02:48.6]} 6. Bxd7+ {[%clk 0:02:56.9]} 6... Nfxd7
{[%clk 0:02:46.2]} 7. d3 {[%clk 0:02:55.9]} 7... Nc6 {[%clk 0:02:46.4]} 8. Nd2
{[%clk 0:02:48.5]} 8... Be7 {[%clk 0:02:43.5]} 9. Nf1 {[%clk 0:02:48.7]} 9...
O-O {[%clk 0:02:38.9]} 10. h4 {[%clk 0:02:46.1]} 10... f5 {[%clk 0:02:34.8]} 11.
exf5 {[%clk 0:02:43.3]} 11... Rxf5 {[%clk 0:02:35.7]} 12. Ne3 {[%clk 0:02:42.6]}
12... Rf7 {[%clk 0:02:36.2]} 13. Ned5 {[%clk 0:02:41.6]} 13... Nf6 {[%clk
0:02:08.8]} 14. Be3 {[%clk 0:02:36.1]} 14... Qd7 {[%clk 0:01:29.6]} 15. Qe2
{[%clk 0:02:26.8]} 15... Raf8 {[%clk 0:01:28.3]} 16. O-O-O {[%clk 0:02:12.5]}
16... Bd8 {[%clk 0:01:28.5]} 17. f3 {[%clk 0:01:59.1]} 17... Nxd5 {[%clk
0:01:24.8]} 18. Nxd5 {[%clk 0:01:58.9]} 18... b5 {[%clk 0:01:13.5]} 19. Kb1
{[%clk 0:01:39.9]} 19... Ne7 {[%clk 0:01:11.4]} 20. Nc3 {[%clk 0:01:34.7]} 20...
a6 {[%clk 0:01:11.8]} 21. h5 {[%clk 0:01:31.8]} 21... Nf5 {[%clk 0:01:02.8]} 22.
Bf2 {[%clk 0:01:32]} 22... Ba5 {[%clk 0:00:58]} 23. Ne4 {[%clk 0:01:26.5]} 23...
Rb8 {[%clk 0:00:53]} 24. g4 {[%clk 0:01:18]} 24... Nd4 {[%clk 0:00:51.8]} 25.
Bxd4 {[%clk 0:01:17.8]} 25... cxd4 {[%clk 0:00:52.7]} 26. c5 {[%clk 0:00:55.3]}
26... d5 {[%clk 0:00:52.8]} 27. Nd6 {[%clk 0:00:53.6]} 27... Re7 {[%clk
0:00:50.9]} 28. Rc1 {[%clk 0:00:26.9]} 28... Bc7 {[%clk 0:00:46.6]} 29. Nf5
{[%clk 0:00:27.2]} 29... Re6 {[%clk 0:00:45.9]} 30. c6 {[%clk 0:00:27.1]} 30...
Qf7 {[%clk 0:00:44.5]} 31. Qc2 {[%clk 0:00:24.4]} 31... Rc8 {[%clk 0:00:21.2]}
32. Qc5 {[%clk 0:00:24.1]} 32... Ree8 {[%clk 0:00:21.6]} 33. Rhe1 {[%clk
0:00:14.2]} 33... Bb8 {[%clk 0:00:16.9]} 34. a3 {[%clk 0:00:11.3]} 34... Ba7
{[%clk 0:00:16.9]} 35. Qd6 {[%clk 0:00:11.5]} 35... Rcd8 {[%clk 0:00:16]} 36.
Qb4 {[%clk 0:00:10.9]} 36... Qc7 {[%clk 0:00:16.2]} 37. Rc2 {[%clk 0:00:09.4]}
37... Bb6 {[%clk 0:00:16.4]} 38. Rec1 {[%clk 0:00:08.8]} 38... g6 {[%clk
0:00:15.2]} 39. hxg6 {[%clk 0:00:08.7]} 39... hxg6 {[%clk 0:00:16.1]} 40. Ng3
{[%clk 0:00:07.3]} 40... Kg7 {[%clk 0:00:15.5]} 41. Rh1 {[%clk 0:00:07]} 41...
Rh8 {[%clk 0:00:15.4]} 42. Rch2 {[%clk 0:00:07.3]} 42... Rxh2 {[%clk 0:00:15.4]}
43. Rxh2 {[%clk 0:00:08.2]} 43... Re8 {[%clk 0:00:13.8]} 44. a4 {[%clk
0:00:04.9]} 44... Qxc6 {[%clk 0:00:12.7]} 45. axb5 {[%clk 0:00:05.1]} 45... axb5
{[%clk 0:00:11.7]} 46. Rc2 {[%clk 0:00:04.3]} 46... Qd7 {[%clk 0:00:11.2]} 47.
Ne2 {[%clk 0:00:03.9]} 47... Rf8 {[%clk 0:00:08.8]} 48. Qa3 {[%clk 0:00:02.8]}
48... Rxf3 {[%clk 0:00:08.5]} 49. Qa8 {[%clk 0:00:03.1]} 49... Rf1+ {[%clk
0:00:08.6]} 50. Nc1 {[%clk 0:00:03.1]} 50... Rf8 {[%clk 0:00:07.4]} 51. Qa3
{[%clk 0:00:02.6]} 51... Rf7 {[%clk 0:00:07]} 52. Qa8 {[%clk 0:00:02.4]} 52...
Bd8 {[%clk 0:00:07]} 53. Rc3 {[%clk 0:00:02.3]} 53... dxc3 {[%clk 0:00:06.9]}
0-1

[Event "Late-Titled-Tuesday-Blitz-June-18-2024"]
[Site "Chess.com"]
[Date "2024.06.18"]
[Round "4"]
[White "VacheH009"]
[Black "carokannlover213"]
[Result "1-0"]
[WhiteElo "2539"]
[BlackElo "2674"]
[TimeControl "180+1"]
[EndTime "14:42:30 PDT"]
[Termination "VacheH009 won on time"]

1. c4 {[%clk 0:03:00.9]} 1... e6 {[%clk 0:02:57.7]} 2. Nc3 {[%clk 0:03:00.1]}
2... d5 {[%clk 0:02:56.9]} 3. d4 {[%clk 0:03:00.4]} 3... Nf6 {[%clk 0:02:56.4]}
4. Nf3 {[%clk 0:02:59.8]} 4... c6 {[%clk 0:02:51.9]} 5. e3 {[%clk 0:02:54.9]}
5... Nbd7 {[%clk 0:02:50.6]} 6. Qc2 {[%clk 0:02:53.7]} 6... Bd6 {[%clk
0:02:50.3]} 7. Be2 {[%clk 0:02:54.1]} 7... O-O {[%clk 0:02:49]} 8. b3 {[%clk
0:02:54.3]} 8... Qe7 {[%clk 0:02:42.9]} 9. O-O {[%clk 0:02:53.2]} 9... b6 {[%clk
0:02:43.3]} 10. Bb2 {[%clk 0:02:52.6]} 10... Bb7 {[%clk 0:02:42.9]} 11. a4
{[%clk 0:02:53.2]} 11... a5 {[%clk 0:02:38.3]} 12. Rfd1 {[%clk 0:02:49.7]} 12...
Rfd8 {[%clk 0:02:36.4]} 13. e4 {[%clk 0:02:43.4]} 13... dxe4 {[%clk 0:02:35.4]}
14. Nxe4 {[%clk 0:02:44.3]} 14... Nxe4 {[%clk 0:02:35.9]} 15. Qxe4 {[%clk
0:02:45.2]} 15... f5 {[%clk 0:02:34.8]} 16. Qc2 {[%clk 0:02:35.6]} 16... c5
{[%clk 0:02:34]} 17. d5 {[%clk 0:02:00.4]} 17... exd5 {[%clk 0:02:12.3]} 18.
cxd5 {[%clk 0:01:52.2]} 18... Nf6 {[%clk 0:01:39.5]} 19. Qxf5 {[%clk 0:01:05.8]}
19... Qxe2 {[%clk 0:00:47.1]} 20. Bxf6 {[%clk 0:00:51.6]} 20... Rf8 {[%clk
0:00:26.9]} 21. Qe6+ {[%clk 0:00:20.6]} 21... Qxe6 {[%clk 0:00:27.2]} 22. dxe6
{[%clk 0:00:21.3]} 22... Bf4 {[%clk 0:00:16.2]} 23. Be7 {[%clk 0:00:05]} 23...
Rfe8 {[%clk 0:00:15.1]} 24. Bd6 {[%clk 0:00:05.5]} 24... Bh6 {[%clk 0:00:10.5]}
25. e7 {[%clk 0:00:05.9]} 25... Bxf3 {[%clk 0:00:01.4]} 26. gxf3 {[%clk
0:00:06.8]} 26... Bg5 {[%clk 0:00:01.8]} 27. Re1 {[%clk 0:00:06.5]} 27... Kf7
{[%clk 0:00:01.9]} 28. Bc7 {[%clk 0:00:05]} 28... Bxe7 {[%clk 0:00:01.4]} 29.
Bxb6 {[%clk 0:00:05.1]} 29... Reb8 {[%clk 0:00:01.3]} 30. Bc7 {[%clk 0:00:03.6]}
30... Rxb3 {[%clk 0:00:01.9]} 31. Rad1 {[%clk 0:00:03.7]} 31... Ra7 {[%clk
0:00:01.9]} 32. Bg3 {[%clk 0:00:01.8]} 32... c4 {[%clk 0:00:02]} 33. Rd5 {[%clk
0:00:01.8]} 33... Rab7 {[%clk 0:00:01.9]} 34. Rf5+ {[%clk 0:00:02.3]} 34... Ke8
{[%clk 0:00:02.5]} 35. Kg2 {[%clk 0:00:01.4]} 35... c3 {[%clk 0:00:02.4]} 36.
Rc1 {[%clk 0:00:01.5]} 36... Kd7 {[%clk 0:00:01.8]} 37. Rf4 {[%clk 0:00:01.9]}
37... Bf6 {[%clk 0:00:02.1]} 38. Rc4 {[%clk 0:00:02.1]} 38... R7b4 {[%clk
0:00:01.7]} 39. Rc5 {[%clk 0:00:02]} 39... Ke6 {[%clk 0:00:02.4]} 40. f4 {[%clk
0:00:01.4]} 40... Kf7 {[%clk 0:00:02.3]} 41. f5 {[%clk 0:00:01.9]} 41... Rxa4
{[%clk 0:00:02.8]} 42. Rc7+ {[%clk 0:00:02.2]} 42... Ke8 {[%clk 0:00:03.1]} 43.
Re1+ {[%clk 0:00:01.3]} 43... Kd8 {[%clk 0:00:03.5]} 44. Ra7 {[%clk 0:00:01.6]}
44... Rc4 {[%clk 0:00:02.2]} 45. Rd1+ {[%clk 0:00:01.8]} 45... Rd4 {[%clk
0:00:02.6]} 46. Re1 {[%clk 0:00:01.1]} 46... c2 {[%clk 0:00:02.6]} 47. Bc7+
{[%clk 0:00:01.8]} 47... Kc8 {[%clk 0:00:02]} 48. Re8+ {[%clk 0:00:01.7]} 48...
Bd8 {[%clk 0:00:01.5]} 49. Bxd8 {[%clk 0:00:01.5]} 1-0